[Event "Early Titled Tuesday Blitz | February 8 2022"]
[White "Manukyan, Artyom"]
[Black "Brodowski, Piotr"]
[WhiteFideId "13305786"]
[BlackFideId "1124480"]
[WhiteElo "2034"]
[BlackElo "2422"]
[Result "1/2-1/2"]
[Round "10"]
[TimeControl "180+1"]
[Date "2022.02.08"]
[WhiteClock "0:00:21"]
[BlackClock "0:00:12"]

1. e4 {[%clk 0:03:00]}  c5 {[%clk 0:02:56]} 2. Nc3 {[%clk 0:03:00]}  g6 {[%clk 0:02:45]} 3. d4 {[%clk 0:02:58]}  Bg7 {[%clk 0:02:43]} 4. dxc5 {[%clk 0:02:58]}  Qa5 {[%clk 0:02:43]} 5. Bd2 {[%clk 0:02:58]}  Qxc5 {[%clk 0:02:42]} 6. Nd5 {[%clk 0:02:59]}  Na6 {[%clk 0:00:57]} 7. Nf3 {[%clk 0:02:54]}  Bxb2 {[%clk 0:00:50]} 8. Rb1 {[%clk 0:02:33]}  Bg7 {[%clk 0:00:47]} 9. Bxa6 {[%clk 0:02:18]}  bxa6 {[%clk 0:00:43]} 10. O-O {[%clk 0:02:19]}  d6 {[%clk 0:00:39]} 11. Bb4 {[%clk 0:01:51]}  Qc4 {[%clk 0:00:37]} 12. Ba5 {[%clk 0:01:48]}  Kf8 {[%clk 0:00:36]} 13. Nc7 {[%clk 0:01:44]}  Qc5 {[%clk 0:00:36]} 14. Qd2 {[%clk 0:01:40]}  Qc6 {[%clk 0:00:36]} 15. Nxa8 {[%clk 0:01:34]}  Qxa8 {[%clk 0:00:37]} 16. Qb4 {[%clk 0:01:35]}  Nf6 {[%clk 0:00:30]} 17. Qb8 {[%clk 0:01:21]}  Qc6 {[%clk 0:00:29]} 18. Qxa7 {[%clk 0:00:56]}  Nd7 {[%clk 0:00:27]} 19. Nd4 {[%clk 0:00:38]}  Qc4 {[%clk 0:00:25]} 20. Rfd1 {[%clk 0:00:33]}  Bf6 {[%clk 0:00:23]} 21. Qc7 {[%clk 0:00:30]}  Qxc7 {[%clk 0:00:23]} 22. Bxc7 {[%clk 0:00:30]}  Kg7 {[%clk 0:00:23]} 23. Nc6 {[%clk 0:00:28]}  Nc5 {[%clk 0:00:23]} 24. f3 {[%clk 0:00:28]}  Bd7 {[%clk 0:00:23]} 25. Nb4 {[%clk 0:00:26]}  Rc8 {[%clk 0:00:23]} 26. Nd5 {[%clk 0:00:25]}  Ba4 {[%clk 0:00:23]} 27. Rd2 {[%clk 0:00:21]}  Bg5 {[%clk 0:00:23]} 28. f4 {[%clk 0:00:14]}  Nxe4 {[%clk 0:00:20]} 29. Rd4 {[%clk 0:00:11]}  Bc6 {[%clk 0:00:18]} 30. fxg5 {[%clk 0:00:06]}  Bxd5 {[%clk 0:00:18]} 31. Rxd5 {[%clk 0:00:05]}  Rxc7 {[%clk 0:00:19]} 32. Re1 {[%clk 0:00:05]}  Nc5 {[%clk 0:00:18]} 33. h4 {[%clk 0:00:05]}  Kf8 {[%clk 0:00:17]} 34. Re2 {[%clk 0:00:05]}  Nd7 {[%clk 0:00:18]} 35. Ra5 {[%clk 0:00:04]}  Rc6 {[%clk 0:00:18]} 36. Kh2 {[%clk 0:00:04]}  Ne5 {[%clk 0:00:18]} 37. Ra4 {[%clk 0:00:03]}  Ke8 {[%clk 0:00:18]} 38. Kg3 {[%clk 0:00:02]}  Kd7 {[%clk 0:00:19]} 39. Kh2 {[%clk 0:00:03]}  Nc4 {[%clk 0:00:14]} 40. Rb4 {[%clk 0:00:03]}  Rc7 {[%clk 0:00:14]} 41. Re4 {[%clk 0:00:02]}  d5 {[%clk 0:00:14]} 42. Rf4 {[%clk 0:00:02]}  Ke6 {[%clk 0:00:14]} 43. Rb8 {[%clk 0:00:03]}  Ne5 {[%clk 0:00:14]} 44. Rf2 {[%clk 0:00:03]}  Ng4+ {[%clk 0:00:12]} 45. Kg3 {[%clk 0:00:04]}  Nxf2 {[%clk 0:00:13]} 46. Kxf2 {[%clk 0:00:05]}  Rxc2+ {[%clk 0:00:13]} 47. Kg3 {[%clk 0:00:06]}  Rxa2 {[%clk 0:00:14]} 48. Rh8 {[%clk 0:00:06]}  Ra3+ {[%clk 0:00:14]} 49. Kh2 {[%clk 0:00:06]}  Ra4 {[%clk 0:00:14]} 50. Rxh7 {[%clk 0:00:06]}  Re4 {[%clk 0:00:14]} 51. g3 {[%clk 0:00:06]}  a5 {[%clk 0:00:14]} 52. Rh8 {[%clk 0:00:07]}  a4 {[%clk 0:00:14]} 53. Ra8 {[%clk 0:00:08]}  Kf5 {[%clk 0:00:15]} 54. Kh3 {[%clk 0:00:08]}  Ke6 {[%clk 0:00:15]} 55. Ra6+ {[%clk 0:00:09]}  Kd7 {[%clk 0:00:15]} 56. Ra5 {[%clk 0:00:10]}  e6 {[%clk 0:00:15]} 57. g4 {[%clk 0:00:10]}  Ke8 {[%clk 0:00:15]} 58. h5 {[%clk 0:00:10]}  Kf8 {[%clk 0:00:15]} 59. Kh4 {[%clk 0:00:10]}  Kg8 {[%clk 0:00:15]} 60. Ra8+ {[%clk 0:00:10]}  Kg7 {[%clk 0:00:16]} 61. Ra7 {[%clk 0:00:11]}  Rf4 {[%clk 0:00:16]} 62. Kg3 {[%clk 0:00:11]}  Rf1 {[%clk 0:00:16]} 63. Rxa4 {[%clk 0:00:10]}  Rh1 {[%clk 0:00:16]} 64. h6+ {[%clk 0:00:10]}  Kh7 {[%clk 0:00:17]} 65. Ra7 {[%clk 0:00:10]}  Rf1 {[%clk 0:00:17]} 66. Kg2 {[%clk 0:00:11]}  Rf4 {[%clk 0:00:17]} 67. Kg3 {[%clk 0:00:11]}  e5 {[%clk 0:00:17]} 68. Re7 {[%clk 0:00:10]}  Rf1 {[%clk 0:00:08]} 69. Rxe5 {[%clk 0:00:11]}  f6 {[%clk 0:00:08]} 70. Re7+ {[%clk 0:00:10]}  Kg8 {[%clk 0:00:08]} 71. h7+ {[%clk 0:00:10]}  Kh8 {[%clk 0:00:09]} 72. gxf6 {[%clk 0:00:10]}  Rxf6 {[%clk 0:00:09]} 73. g5 {[%clk 0:00:10]}  Rf5 {[%clk 0:00:09]} 74. Kg4 {[%clk 0:00:11]}  d4 {[%clk 0:00:09]} 75. Rd7 {[%clk 0:00:11]}  Rb5 {[%clk 0:00:08]} 76. Rxd4 {[%clk 0:00:10]}  Kxh7 {[%clk 0:00:09]} 77. Rd7+ {[%clk 0:00:11]}  Kg8 {[%clk 0:00:10]} 78. Kf4 {[%clk 0:00:11]}  Rb4+ {[%clk 0:00:09]} 79. Ke5 {[%clk 0:00:11]}  Rb6 {[%clk 0:00:10]} 80. Rd6 {[%clk 0:00:10]}  Rb7 {[%clk 0:00:05]} 81. Kf6 {[%clk 0:00:11]}  Rb8 {[%clk 0:00:04]} 82. Kxg6 {[%clk 0:00:11]}  Ra8 {[%clk 0:00:05]} 83. Rd7 {[%clk 0:00:11]}  Rb8 {[%clk 0:00:05]} 84. Kh6 {[%clk 0:00:12]}  Ra8 {[%clk 0:00:04]} 85. Rg7+ {[%clk 0:00:12]}  Kf8 {[%clk 0:00:03]} 86. Rb7 {[%clk 0:00:13]}  Kg8 {[%clk 0:00:03]} 87. Rg7+ {[%clk 0:00:13]}  Kh8 {[%clk 0:00:03]} 88. Rb7 {[%clk 0:00:13]}  Rc8 {[%clk 0:00:03]} 89. Kg6 {[%clk 0:00:13]}  Kg8 {[%clk 0:00:03]} 90. Kf6 {[%clk 0:00:14]}  Rc6+ {[%clk 0:00:04]} 91. Kf5 {[%clk 0:00:13]}  Ra6 {[%clk 0:00:04]} 92. Kg4 {[%clk 0:00:12]}  Rc6 {[%clk 0:00:04]} 93. Kh5 {[%clk 0:00:12]}  Ra6 {[%clk 0:00:04]} 94. Rc7 {[%clk 0:00:12]}  Rb6 {[%clk 0:00:05]} 95. Re7 {[%clk 0:00:12]}  Ra6 {[%clk 0:00:05]} 96. Kg4 {[%clk 0:00:13]}  Rb6 {[%clk 0:00:06]} 97. Kf5 {[%clk 0:00:13]}  Ra6 {[%clk 0:00:06]} 98. Re6 {[%clk 0:00:13]}  Rxe6 {[%clk 0:00:06]} 99. Kxe6 {[%clk 0:00:14]}  Kg7 {[%clk 0:00:07]} 100. Kf5 {[%clk 0:00:15]}  Kf7 {[%clk 0:00:08]} 101. g6+ {[%clk 0:00:15]}  Kg7 {[%clk 0:00:09]} 102. Kg5 {[%clk 0:00:16]}  Kg8 {[%clk 0:00:09]} 103. Kf6 {[%clk 0:00:17]}  Kf8 {[%clk 0:00:09]} 104. Ke5 {[%clk 0:00:17]}  Kg8 {[%clk 0:00:10]} 105. Kf5 {[%clk 0:00:18]}  Kg7 {[%clk 0:00:10]} 106. Kg5 {[%clk 0:00:18]}  Kg8 {[%clk 0:00:11]} 107. Kh6 {[%clk 0:00:19]}  Kh8 {[%clk 0:00:11]} 108. Kh5 {[%clk 0:00:20]}  Kg7 {[%clk 0:00:12]} 109. Kg5 {[%clk 0:00:21]} 1/2-1/2


[Site "https://www.chess.com"]

[Event "Early Titled Tuesday Blitz | February 8 2022"]
[White "Martin Duque, Jesus"]
[Black "Gabrielian, Artur"]
[WhiteFideId "2208954"]
[BlackFideId "4131002"]
[WhiteElo "2243"]
[BlackElo "2440"]
[Result "0-1"]
[Round "10"]
[TimeControl "180+1"]
[Date "2022.02.08"]
[WhiteClock "0:00:26"]
[BlackClock "0:00:34"]

1. Nf3 {[%clk 0:02:59]}  Nf6 {[%clk 0:02:59]} 2. b3 {[%clk 0:02:59]}  g6 {[%clk 0:03:00]} 3. Bb2 {[%clk 0:02:59]}  Bg7 {[%clk 0:03:00]} 4. g3 {[%clk 0:03:00]}  O-O {[%clk 0:03:01]} 5. Bg2 {[%clk 0:03:01]}  d6 {[%clk 0:03:01]} 6. d4 {[%clk 0:03:01]}  b5 {[%clk 0:03:02]} 7. Qd3 {[%clk 0:03:00]}  a6 {[%clk 0:03:01]} 8. O-O {[%clk 0:03:00]}  Bb7 {[%clk 0:03:01]} 9. Nbd2 {[%clk 0:03:00]}  c5 {[%clk 0:03:00]} 10. c4 {[%clk 0:03:00]}  bxc4 {[%clk 0:02:59]} 11. Nxc4 {[%clk 0:02:59]}  cxd4 {[%clk 0:02:55]} 12. Nxd4 {[%clk 0:02:58]}  Bxg2 {[%clk 0:02:55]} 13. Kxg2 {[%clk 0:02:59]}  Nbd7 {[%clk 0:02:47]} 14. Nc6 {[%clk 0:02:57]}  Qe8 {[%clk 0:02:43]} 15. Bxf6 {[%clk 0:02:43]}  Bxf6 {[%clk 0:02:16]} 16. Rac1 {[%clk 0:02:38]}  Nc5 {[%clk 0:02:16]} 17. Qf3 {[%clk 0:02:38]}  Rc8 {[%clk 0:02:16]} 18. N4a5 {[%clk 0:02:33]}  Qd7 {[%clk 0:02:12]} 19. Rfd1 {[%clk 0:02:32]}  Ne6 {[%clk 0:01:59]} 20. h4 {[%clk 0:02:26]}  h5 {[%clk 0:01:58]} 21. b4 {[%clk 0:02:22]}  Rc7 {[%clk 0:01:57]} 22. e4 {[%clk 0:02:14]}  Nd4 {[%clk 0:01:24]} 23. Nxd4 {[%clk 0:01:57]}  Rxc1 {[%clk 0:01:23]} 24. Rxc1 {[%clk 0:01:56]}  Bxd4 {[%clk 0:01:23]} 25. Qd3 {[%clk 0:01:50]}  e5 {[%clk 0:01:21]} 26. Qxa6 {[%clk 0:01:50]}  f5 {[%clk 0:01:15]} 27. Qc6 {[%clk 0:01:49]}  Qf7 {[%clk 0:01:04]} 28. exf5 {[%clk 0:01:20]}  Qxf5 {[%clk 0:00:52]} 29. Qd5+ {[%clk 0:01:18]}  Kh8 {[%clk 0:00:49]} 30. f3 {[%clk 0:01:16]}  g5 {[%clk 0:00:48]} 31. hxg5 {[%clk 0:00:53]}  Qxg5 {[%clk 0:00:45]} 32. Rc7 {[%clk 0:00:49]}  h4 {[%clk 0:00:38]} 33. g4 {[%clk 0:00:25]}  Qd2+ {[%clk 0:00:35]} 34. Kh3 {[%clk 0:00:26]}  Qf2 {[%clk 0:00:34]} 0-1


[Site "https://www.chess.com"]

[Event "Early Titled Tuesday Blitz | February 8 2022"]
[White "Martinovici, Ilia"]
[Black "Moroni, Luca Jr"]
[WhiteFideId "13907034"]
[BlackFideId "865834"]
[WhiteElo "2303"]
[BlackElo "2573"]
[Result "1-0"]
[Round "10"]
[TimeControl "180+1"]
[Date "2022.02.08"]
[WhiteClock "0:00:14"]
[BlackClock "0:00:04"]

1. d4 {[%clk 0:03:00]}  g6 {[%clk 0:03:00]} 2. c4 {[%clk 0:03:00]}  Bg7 {[%clk 0:03:01]} 3. e4 {[%clk 0:02:59]}  d6 {[%clk 0:03:01]} 4. Nc3 {[%clk 0:02:57]}  c5 {[%clk 0:03:01]} 5. d5 {[%clk 0:02:57]}  Bxc3+ {[%clk 0:03:02]} 6. bxc3 {[%clk 0:02:57]}  e5 {[%clk 0:03:03]} 7. h4 {[%clk 0:02:51]}  h5 {[%clk 0:02:57]} 8. Bg5 {[%clk 0:02:41]}  f6 {[%clk 0:02:57]} 9. Be3 {[%clk 0:02:40]}  Qe7 {[%clk 0:02:56]} 10. Qd2 {[%clk 0:02:27]}  f5 {[%clk 0:02:56]} 11. Bg5 {[%clk 0:02:25]}  Qg7 {[%clk 0:02:56]} 12. exf5 {[%clk 0:02:23]}  gxf5 {[%clk 0:02:55]} 13. O-O-O {[%clk 0:02:16]}  Nf6 {[%clk 0:02:54]} 14. Bd3 {[%clk 0:02:15]}  e4 {[%clk 0:02:25]} 15. Bc2 {[%clk 0:02:13]}  Nbd7 {[%clk 0:02:24]} 16. Ba4 {[%clk 0:02:03]}  a6 {[%clk 0:02:19]} 17. Ne2 {[%clk 0:01:57]}  b5 {[%clk 0:02:18]} 18. cxb5 {[%clk 0:01:58]}  axb5 {[%clk 0:02:19]} 19. Bxb5 {[%clk 0:01:59]}  Kf7 {[%clk 0:02:07]} 20. Nf4 {[%clk 0:01:53]}  Ne5 {[%clk 0:01:54]} 21. Ne6 {[%clk 0:01:52]}  Bxe6 {[%clk 0:01:47]} 22. dxe6+ {[%clk 0:01:53]}  Kg6 {[%clk 0:01:48]} 23. Qxd6 {[%clk 0:01:45]}  Nfg4 {[%clk 0:01:27]} 24. e7+ {[%clk 0:01:44]}  Kh7 {[%clk 0:01:27]} 25. Qe6 {[%clk 0:01:30]}  Nxf2 {[%clk 0:00:34]} 26. Qxf5+ {[%clk 0:01:24]}  Ng6 {[%clk 0:00:34]} 27. Bf6 {[%clk 0:01:16]}  Qh6+ {[%clk 0:00:33]} 28. Bg5 {[%clk 0:01:09]}  Qg7 {[%clk 0:00:32]} 29. Qxf2 {[%clk 0:00:27]}  Qxc3+ {[%clk 0:00:31]} 30. Qc2 {[%clk 0:00:27]}  Qa1+ {[%clk 0:00:16]} 31. Kd2 {[%clk 0:00:19]}  Qd4+ {[%clk 0:00:15]} 32. Ke2 {[%clk 0:00:19]}  Qb4 {[%clk 0:00:07]} 33. Qc4 {[%clk 0:00:15]}  Qb2+ {[%clk 0:00:05]} 34. Rd2 {[%clk 0:00:15]}  Qg7 {[%clk 0:00:05]} 35. Rf1 {[%clk 0:00:13]}  Rhe8 {[%clk 0:00:04]} 36. Rf7 {[%clk 0:00:13]}  Ne5 {[%clk 0:00:03]} 37. Rxg7+ {[%clk 0:00:13]}  Kxg7 {[%clk 0:00:04]} 38. Qe6 {[%clk 0:00:13]}  Ng6 {[%clk 0:00:03]} 39. Qf6+ {[%clk 0:00:13]}  Kh7 {[%clk 0:00:03]} 40. Qf7+ {[%clk 0:00:13]}  Kh8 {[%clk 0:00:04]} 41. Bf6# {[%clk 0:00:14]} 1-0


[Site "https://www.chess.com"]

[Event "Early Titled Tuesday Blitz | February 8 2022"]
[White "Maurizzi, Marc`Andria"]
[Black "Yoo, Christopher Woojin"]
[WhiteFideId "36083534"]
[BlackFideId "30909694"]
[WhiteElo "2186"]
[BlackElo "2105"]
[Result "0-1"]
[Round "10"]
[TimeControl "180+1"]
[Date "2022.02.08"]
[WhiteClock "0:00:06"]
[BlackClock "0:00:06"]

1. d4 {[%clk 0:03:00]}  Nf6 {[%clk 0:02:58]} 2. c4 {[%clk 0:03:01]}  e6 {[%clk 0:02:58]} 3. Nc3 {[%clk 0:03:00]}  Bb4 {[%clk 0:02:53]} 4. Nf3 {[%clk 0:03:00]}  O-O {[%clk 0:02:51]} 5. Bg5 {[%clk 0:03:00]}  d5 {[%clk 0:02:47]} 6. e3 {[%clk 0:02:59]}  h6 {[%clk 0:02:46]} 7. Bh4 {[%clk 0:02:58]}  Be7 {[%clk 0:02:46]} 8. Rc1 {[%clk 0:02:51]}  Nbd7 {[%clk 0:02:20]} 9. cxd5 {[%clk 0:02:49]}  exd5 {[%clk 0:02:18]} 10. Bd3 {[%clk 0:02:48]}  b6 {[%clk 0:02:15]} 11. O-O {[%clk 0:02:41]}  Bb7 {[%clk 0:02:15]} 12. Qe2 {[%clk 0:02:34]}  c5 {[%clk 0:02:15]} 13. Rfd1 {[%clk 0:02:34]}  c4 {[%clk 0:02:02]} 14. Bf5 {[%clk 0:02:28]}  a6 {[%clk 0:02:01]} 15. Ne5 {[%clk 0:02:22]}  b5 {[%clk 0:01:57]} 16. Qf3 {[%clk 0:02:09]}  Nb6 {[%clk 0:01:40]} 17. a3 {[%clk 0:02:04]}  Ne8 {[%clk 0:01:34]} 18. Bg3 {[%clk 0:01:45]}  Nd6 {[%clk 0:01:33]} 19. Bb1 {[%clk 0:01:45]}  a5 {[%clk 0:01:26]} 20. Nxb5 {[%clk 0:01:39]}  Ne4 {[%clk 0:00:40]} 21. Nc3 {[%clk 0:01:36]}  f5 {[%clk 0:00:36]} 22. Bxe4 {[%clk 0:01:25]}  fxe4 {[%clk 0:00:37]} 23. Qg4 {[%clk 0:01:21]}  Bc8 {[%clk 0:00:36]} 24. Qe2 {[%clk 0:01:20]}  Qe8 {[%clk 0:00:36]} 25. h3 {[%clk 0:01:01]}  Be6 {[%clk 0:00:30]} 26. f3 {[%clk 0:00:52]}  exf3 {[%clk 0:00:29]} 27. Nxf3 {[%clk 0:00:53]}  Bf5 {[%clk 0:00:21]} 28. Bc7 {[%clk 0:00:44]}  Bd3 {[%clk 0:00:16]} 29. Rxd3 {[%clk 0:00:27]}  cxd3 {[%clk 0:00:16]} 30. Qxd3 {[%clk 0:00:27]}  Bd8 {[%clk 0:00:06]} 31. Bxb6 {[%clk 0:00:26]}  Bxb6 {[%clk 0:00:07]} 32. Nxd5 {[%clk 0:00:26]}  Bd8 {[%clk 0:00:08]} 33. e4 {[%clk 0:00:20]}  Rb8 {[%clk 0:00:07]} 34. b4 {[%clk 0:00:19]}  axb4 {[%clk 0:00:07]} 35. axb4 {[%clk 0:00:20]}  Qe6 {[%clk 0:00:07]} 36. b5 {[%clk 0:00:18]}  Qd7 {[%clk 0:00:04]} 37. Rc6 {[%clk 0:00:17]}  Qb7 {[%clk 0:00:03]} 38. Nc3 {[%clk 0:00:16]}  Ba5 {[%clk 0:00:03]} 39. Qc4+ {[%clk 0:00:13]}  Kh8 {[%clk 0:00:03]} 40. Ne5 {[%clk 0:00:12]}  Rfc8 {[%clk 0:00:02]} 41. Nf7+ {[%clk 0:00:11]}  Kh7 {[%clk 0:00:02]} 42. Nd6 {[%clk 0:00:12]}  Rxc6 {[%clk 0:00:01]} 43. bxc6 {[%clk 0:00:13]}  Qb4 {[%clk 0:00:02]} 44. Qxb4 {[%clk 0:00:10]}  Rxb4 {[%clk 0:00:01]} 45. d5 {[%clk 0:00:09]}  Rd4 {[%clk 0:00:01]} 46. Ndb5 {[%clk 0:00:08]}  Rc4 {[%clk 0:00:01]} 47. Kf2 {[%clk 0:00:06]}  Bxc3 {[%clk 0:00:01]} 48. Nd6 {[%clk 0:00:04]}  Rc5 {[%clk 0:00:01]} 49. Nb7 {[%clk 0:00:05]}  Bd4+ {[%clk 0:00:02]} 50. Ke2 {[%clk 0:00:05]}  Rc3 {[%clk 0:00:03]} 51. Kd2 {[%clk 0:00:05]}  Be5 {[%clk 0:00:03]} 52. Nd8 {[%clk 0:00:04]}  Kg6 {[%clk 0:00:03]} 53. Ne6 {[%clk 0:00:04]}  Kf6 {[%clk 0:00:03]} 54. c7 {[%clk 0:00:04]}  Rxc7 {[%clk 0:00:04]} 55. Nxc7 {[%clk 0:00:03]}  Bxc7 {[%clk 0:00:05]} 56. Ke3 {[%clk 0:00:04]}  Ke5 {[%clk 0:00:05]} 57. Kd3 {[%clk 0:00:05]}  Bb6 {[%clk 0:00:05]} 58. Kc4 {[%clk 0:00:05]}  Kxe4 {[%clk 0:00:05]} 59. Kc3 {[%clk 0:00:06]}  Kxd5 {[%clk 0:00:06]} 0-1


[Site "https://www.chess.com"]

[Event "Early Titled Tuesday Blitz | February 8 2022"]
[White "Mejia, Cherry Ann"]
[Black "Blokhin, Sofia"]
[WhiteFideId "5206880"]
[BlackFideId "4508190"]
[WhiteElo "2007"]
[BlackElo "1762"]
[Result "1-0"]
[Round "10"]
[TimeControl "180+1"]
[Date "2022.02.08"]
[WhiteClock "0:02:10"]
[BlackClock "0:00:20"]

1. e4 {[%clk 0:03:00]}  c5 {[%clk 0:02:59]} 2. Nc3 {[%clk 0:03:00]}  e6 {[%clk 0:02:58]} 3. g3 {[%clk 0:03:01]}  g6 {[%clk 0:02:58]} 4. Bg2 {[%clk 0:02:59]}  Bg7 {[%clk 0:02:58]} 5. d3 {[%clk 0:02:57]}  Nc6 {[%clk 0:02:57]} 6. Be3 {[%clk 0:02:57]}  b6 {[%clk 0:02:57]} 7. Qd2 {[%clk 0:02:57]}  Nge7 {[%clk 0:02:56]} 8. Bh6 {[%clk 0:02:55]}  O-O {[%clk 0:02:54]} 9. h4 {[%clk 0:02:54]}  f6 {[%clk 0:02:50]} 10. Bxg7 {[%clk 0:02:53]}  Kxg7 {[%clk 0:02:47]} 11. h5 {[%clk 0:02:54]}  g5 {[%clk 0:02:45]} 12. h6+ {[%clk 0:02:52]}  Kh8 {[%clk 0:02:44]} 13. f4 {[%clk 0:02:53]}  Rg8 {[%clk 0:02:41]} 14. e5 {[%clk 0:02:42]}  Nf5 {[%clk 0:02:38]} 15. g4 {[%clk 0:02:36]}  Nfd4 {[%clk 0:02:24]} 16. Ne4 {[%clk 0:02:35]}  fxe5 {[%clk 0:02:18]} 17. fxg5 {[%clk 0:02:32]}  Rg6 {[%clk 0:02:11]} 18. c3 {[%clk 0:02:31]}  Nb5 {[%clk 0:02:07]} 19. Nf3 {[%clk 0:02:30]}  d5 {[%clk 0:02:04]} 20. Nf6 {[%clk 0:02:28]}  Rxf6 {[%clk 0:01:43]} 21. gxf6 {[%clk 0:02:29]}  Qxf6 {[%clk 0:01:43]} 22. Qg5 {[%clk 0:02:24]}  Qxg5 {[%clk 0:01:33]} 23. Nxg5 {[%clk 0:02:25]}  Kg8 {[%clk 0:01:29]} 24. Rf1 {[%clk 0:02:24]}  Nd6 {[%clk 0:01:16]} 25. O-O-O {[%clk 0:02:22]}  a5 {[%clk 0:01:11]} 26. Rf6 {[%clk 0:02:22]}  Bd7 {[%clk 0:00:47]} 27. Rdf1 {[%clk 0:02:19]}  Re8 {[%clk 0:00:38]} 28. Nf7 {[%clk 0:02:17]}  Nb5 {[%clk 0:00:31]} 29. a4 {[%clk 0:02:12]}  Nc7 {[%clk 0:00:26]} 30. Nd6 {[%clk 0:02:11]}  Rd8 {[%clk 0:00:25]} 31. Rf7 {[%clk 0:02:10]}  b5 {[%clk 0:00:22]} 32. Rg7+ {[%clk 0:02:10]}  Kh8 {[%clk 0:00:20]} 33. Nf7# {[%clk 0:02:10]} 1-0


[Site "https://www.chess.com"]

[Event "Early Titled Tuesday Blitz | February 8 2022"]
[White "Mirzoev, Azer"]
[Black "Bortnyk, Olexandr"]
[WhiteFideId "13400304"]
[BlackFideId "14120828"]
[WhiteElo "2525"]
[BlackElo "2723"]
[Result "0-1"]
[Round "10"]
[TimeControl "180+1"]
[Date "2022.02.08"]
[WhiteClock "0:00:02"]
[BlackClock "0:01:06"]

1. d4 {[%clk 0:03:00]}  e6 {[%clk 0:02:55]} 2. Bf4 {[%clk 0:03:01]}  g5 {[%clk 0:02:55]} 3. Bg3 {[%clk 0:02:59]}  h5 {[%clk 0:02:56]} 4. h4 {[%clk 0:02:58]}  g4 {[%clk 0:02:57]} 5. Nd2 {[%clk 0:02:55]}  Bg7 {[%clk 0:02:54]} 6. c3 {[%clk 0:02:54]}  d6 {[%clk 0:02:52]} 7. e4 {[%clk 0:02:54]}  Ne7 {[%clk 0:02:53]} 8. Bd3 {[%clk 0:02:52]}  Ng6 {[%clk 0:02:37]} 9. Ne2 {[%clk 0:02:50]}  Nc6 {[%clk 0:02:35]} 10. Qb3 {[%clk 0:02:42]}  e5 {[%clk 0:02:31]} 11. Bb5 {[%clk 0:02:25]}  O-O {[%clk 0:02:29]} 12. Qa4 {[%clk 0:02:00]}  Bd7 {[%clk 0:02:23]} 13. d5 {[%clk 0:01:58]}  a6 {[%clk 0:02:23]} 14. Bxc6 {[%clk 0:01:55]}  bxc6 {[%clk 0:02:23]} 15. dxc6 {[%clk 0:01:55]}  Be8 {[%clk 0:02:23]} 16. Nb3 {[%clk 0:01:52]}  Bh6 {[%clk 0:02:16]} 17. Na5 {[%clk 0:01:41]}  Rb8 {[%clk 0:02:11]} 18. b4 {[%clk 0:01:36]}  f5 {[%clk 0:01:59]} 19. exf5 {[%clk 0:01:36]}  Rxf5 {[%clk 0:02:00]} 20. Qc2 {[%clk 0:01:23]}  Qf6 {[%clk 0:01:53]} 21. Rd1 {[%clk 0:01:08]}  Nf4 {[%clk 0:01:51]} 22. Bxf4 {[%clk 0:01:07]}  exf4 {[%clk 0:01:51]} 23. Nd4 {[%clk 0:00:52]}  Re5+ {[%clk 0:01:49]} 24. Kf1 {[%clk 0:00:51]}  Bg6 {[%clk 0:01:49]} 25. Qb3+ {[%clk 0:00:29]}  Bf7 {[%clk 0:01:49]} 26. Qc2 {[%clk 0:00:28]}  Rbe8 {[%clk 0:01:49]} 27. f3 {[%clk 0:00:13]}  g3 {[%clk 0:01:47]} 28. Qd2 {[%clk 0:00:09]}  Bg7 {[%clk 0:01:29]} 29. Qd3 {[%clk 0:00:08]}  Re3 {[%clk 0:01:23]} 30. Qd2 {[%clk 0:00:08]}  Qe5 {[%clk 0:01:19]} 31. a4 {[%clk 0:00:02]}  Qd5 {[%clk 0:01:06]} 0-1


[Site "https://www.chess.com"]

[Event "Early Titled Tuesday Blitz | February 8 2022"]
[White "Mohammad Fahad, Rahman"]
[Black "Berdychevskaya, Natasha"]
[WhiteFideId "10207791"]
[BlackFideId "4159322"]
[WhiteElo "2323"]
[BlackElo "1780"]
[Result "1-0"]
[Round "10"]
[TimeControl "180+1"]
[Date "2022.02.08"]
[WhiteClock "0:00:04"]
[BlackClock "0:00:01"]

1. d4 {[%clk 0:03:00]}  d5 {[%clk 0:02:59]} 2. Nf3 {[%clk 0:03:01]}  Nf6 {[%clk 0:02:59]} 3. g3 {[%clk 0:03:01]}  c6 {[%clk 0:02:58]} 4. Bg2 {[%clk 0:03:02]}  Bf5 {[%clk 0:02:58]} 5. O-O {[%clk 0:03:02]}  e6 {[%clk 0:02:58]} 6. Bf4 {[%clk 0:03:02]}  Be7 {[%clk 0:02:54]} 7. Nbd2 {[%clk 0:02:52]}  O-O {[%clk 0:02:52]} 8. c4 {[%clk 0:02:53]}  Ne4 {[%clk 0:02:43]} 9. Ne5 {[%clk 0:02:51]}  Nxd2 {[%clk 0:02:36]} 10. Qxd2 {[%clk 0:02:52]}  Nd7 {[%clk 0:02:36]} 11. b3 {[%clk 0:02:48]}  a5 {[%clk 0:02:31]} 12. f3 {[%clk 0:02:28]}  Nxe5 {[%clk 0:02:25]} 13. Bxe5 {[%clk 0:02:28]}  Bg6 {[%clk 0:02:21]} 14. e4 {[%clk 0:02:25]}  dxe4 {[%clk 0:02:13]} 15. fxe4 {[%clk 0:02:25]}  f6 {[%clk 0:02:04]} 16. Bf4 {[%clk 0:02:25]}  e5 {[%clk 0:02:01]} 17. dxe5 {[%clk 0:02:23]}  Qxd2 {[%clk 0:01:56]} 18. Bxd2 {[%clk 0:02:24]}  fxe5 {[%clk 0:01:56]} 19. Be3 {[%clk 0:02:07]}  a4 {[%clk 0:01:54]} 20. Rfb1 {[%clk 0:01:46]}  Bb4 {[%clk 0:01:38]} 21. a3 {[%clk 0:01:39]}  Bc3 {[%clk 0:01:38]} 22. Ra2 {[%clk 0:01:39]}  Rfd8 {[%clk 0:01:08]} 23. bxa4 {[%clk 0:01:31]}  Rxa4 {[%clk 0:01:03]} 24. h4 {[%clk 0:01:19]}  Rxc4 {[%clk 0:01:00]} 25. Rxb7 {[%clk 0:01:16]}  Bd4 {[%clk 0:00:57]} 26. Bxd4 {[%clk 0:01:07]}  exd4 {[%clk 0:00:50]} 27. Rd2 {[%clk 0:00:53]}  d3 {[%clk 0:00:48]} 28. Rb3 {[%clk 0:00:49]}  Bxe4 {[%clk 0:00:45]} 29. Bxe4 {[%clk 0:00:49]}  Rxe4 {[%clk 0:00:45]} 30. Rbxd3 {[%clk 0:00:49]}  Rxd3 {[%clk 0:00:45]} 31. Rxd3 {[%clk 0:00:50]}  Re2 {[%clk 0:00:45]} 32. Kf1 {[%clk 0:00:35]}  Ra2 {[%clk 0:00:44]} 33. Ke1 {[%clk 0:00:36]}  Kf7 {[%clk 0:00:42]} 34. Kd1 {[%clk 0:00:35]}  Ke6 {[%clk 0:00:41]} 35. Kc1 {[%clk 0:00:36]}  c5 {[%clk 0:00:41]} 36. Kb1 {[%clk 0:00:35]}  Rf2 {[%clk 0:00:36]} 37. a4 {[%clk 0:00:35]}  c4 {[%clk 0:00:36]} 38. Ra3 {[%clk 0:00:23]}  Kd5 {[%clk 0:00:35]} 39. a5 {[%clk 0:00:24]}  Rf7 {[%clk 0:00:35]} 40. a6 {[%clk 0:00:24]}  Ra7 {[%clk 0:00:35]} 41. Kc2 {[%clk 0:00:24]}  Kc5 {[%clk 0:00:35]} 42. Kc3 {[%clk 0:00:24]}  Kb5 {[%clk 0:00:36]} 43. g4 {[%clk 0:00:14]}  g6 {[%clk 0:00:33]} 44. Ra1 {[%clk 0:00:13]}  Kc5 {[%clk 0:00:32]} 45. g5 {[%clk 0:00:10]}  Kb5 {[%clk 0:00:30]} 46. Ra2 {[%clk 0:00:04]}  Kc5 {[%clk 0:00:30]} 47. Ra5+ {[%clk 0:00:03]}  Kb6 {[%clk 0:00:26]} 48. Ra1 {[%clk 0:00:02]}  Kc5 {[%clk 0:00:26]} 49. Ra2 {[%clk 0:00:02]}  Kb5 {[%clk 0:00:26]} 50. Kd4 {[%clk 0:00:03]}  Rd7+ {[%clk 0:00:23]} 51. Ke4 {[%clk 0:00:03]}  c3 {[%clk 0:00:20]} 52. a7 {[%clk 0:00:03]}  c2 {[%clk 0:00:20]} 53. a8=Q {[%clk 0:00:03]}  Re7+ {[%clk 0:00:17]} 54. Kf3 {[%clk 0:00:03]}  c1=Q {[%clk 0:00:13]} 55. Qb8+ {[%clk 0:00:03]}  Kc6 {[%clk 0:00:10]} 56. Qc8+ {[%clk 0:00:03]}  Rc7 {[%clk 0:00:10]} 57. Ra6+ {[%clk 0:00:03]}  Kd5 {[%clk 0:00:07]} 58. Qe6+ {[%clk 0:00:03]}  Kc5 {[%clk 0:00:07]} 59. Qe5+ {[%clk 0:00:03]}  Kb4 {[%clk 0:00:05]} 60. Qa5+ {[%clk 0:00:02]}  Kb3 {[%clk 0:00:05]} 61. Rb6+ {[%clk 0:00:02]}  Kc2 {[%clk 0:00:03]} 62. Qa4+ {[%clk 0:00:02]}  Kd2 {[%clk 0:00:03]} 63. Rd6+ {[%clk 0:00:02]}  Ke1 {[%clk 0:00:02]} 64. Qe4+ {[%clk 0:00:02]}  Kf1 {[%clk 0:00:01]} 65. Qe2+ {[%clk 0:00:03]}  Kg1 {[%clk 0:00:01]} 66. Qg2# {[%clk 0:00:04]} 1-0


[Site "https://www.chess.com"]